lending/lending_fUSD_20250303
["ID","MTS","AMOUNT","RATE_DAILY","PERIOD"]
[355201213,1741005035406,-1378.11,0.00014885,2]
[355201214,1741005035415,-153.088694,0.00014885,2]
[355201215,1741005035424,-7186.87,0.00014885,2]
[355201216,1741005035434,-500.0,0.00014885,2]
[355201217,1741005035443,-229.83287616,0.00014885,2]
[355201218,1741005035452,-156.907102,0.00014885,2]
[355201219,1741005035461,-500.0,0.00014885,2]
[355201220,1741005035470,-500.0,0.00014885,2]
[355201221,1741005035479,-510.92466337,0.00014885,2]
[355201222,1741005035488,-500.0,0.00014885,2]
[355201223,1741005035497,-769.19,0.00014885,2]
[355201224,1741005035507,-591.10899251,0.00014885,2]
[355201225,1741005035516,-503.24244919,0.00014885,2]
[355201226,1741005035526,-500.0,0.00014885,2]
[355201227,1741005035535,-656.24,0.00014885,2]
[355201228,1741005035544,-515.14579123,0.00014885,2]
[355201229,1741005035553,-500.0,0.00014885,2]
[355201230,1741005035563,-500.0,0.00014885,2]
[355201231,1741005035572,-505.13783683,0.00014885,2]
[355201232,1741005035582,-500.0,0.00014885,2]
[355201233,1741005035591,-500.0,0.00014885,2]
[355201234,1741005035601,-503.67,0.00014885,2]
[355201235,1741005035610,-500.0,0.00014885,2]
[355201236,1741005035621,-506.83825513,0.00014885,2]
[355201237,1741005035630,-500.0,0.00014885,2]
[355201238,1741005035639,-500.0,0.00014885,2]
[355201239,1741005035649,-500.0,0.00014885,2]
[355201240,1741005035659,-500.0,0.00014885,2]
[355201241,1741005035669,-500.0,0.00014885,2]
[355201242,1741005035679,-500.0,0.00014885,2]
[355201243,1741005035689,-543.92,0.00014885,2]
[355201244,1741005035699,-11425.79,0.00014885,2]
[355201245,1741005035708,-500.0,0.00014885,2]
[355201246,1741005035718,-500.0,0.00014885,2]
[355201247,1741005035727,-500.0,0.00014885,2]
[355201248,1741005035741,-500.0,0.00014885,2]
[355201249,1741005035750,-500.0,0.00014885,2]
[355201250,1741005035759,-500.0,0.00014885,2]
[355201251,1741005035769,-500.0,0.00014885,2]
[355201252,1741005035781,-509.69256552,0.00014885,2]
[355201253,1741005035790,-500.82790765,0.00014885,2]
[355201254,1741005035802,-13346.6,0.00014885,2]
[355201255,1741005035811,-503.4395209,0.00014885,2]
[355201256,1741005035820,-500.0,0.00014885,2]
[355201257,1741005035829,-500.0,0.00014885,2]
[355201258,1741005035839,-500.0,0.00014885,2]
[355201259,1741005035848,-500.0,0.00014885,2]
[355201260,1741005035857,-500.0,0.00014885,2]
[355201261,1741005035869,-500.0,0.00014885,2]
[355201262,1741005035879,-500.0,0.00014885,2]
[355201263,1741005035888,-513.84275006,0.00014885,2]
[355201264,1741005035898,-500.0,0.00014885,2]
[355201265,1741005035907,-500.0,0.00014885,2]
[355201266,1741005035916,-500.0,0.00014885,2]
[355201267,1741005035925,-500.0,0.00014885,2]
[355201268,1741005035935,-500.0,0.00014885,2]
[355201269,1741005035945,-540.86,0.00014885,2]
[355201270,1741005035956,-500.0,0.00014885,2]
[355201271,1741005035966,-500.0,0.00014885,2]
[355201272,1741005035976,-500.0,0.00014885,2]
[355201273,1741005035986,-500.0,0.00014885,2]
[355201274,1741005035996,-521.63,0.00014885,2]
[355201275,1741005036005,-500.0,0.00014885,2]
[355201276,1741005036014,-505.14000116,0.00014885,2]
[355201277,1741005036026,-500.0,0.00014885,2]
[355201278,1741005036040,-500.0,0.00014885,2]
[355201279,1741005036050,-568.17,0.00014885,2]
[355201280,1741005036059,-508.66607662,0.00014885,2]
[355201281,1741005036069,-500.0,0.00014885,2]
[355201282,1741005036079,-500.0,0.00014885,2]
[355201283,1741005036089,-500.0,0.00014885,2]
[355201284,1741005036098,-500.0,0.00014885,2]
[355201285,1741005036108,-500.0,0.00014885,2]
[355201286,1741005036118,-7258.48,0.00014885,2]
[355201287,1741005036128,-513.8132067,0.00014885,2]
[355201288,1741005036137,-509.22999424,0.00014885,2]
[355201289,1741005036147,-500.0,0.00014885,2]
[355201290,1741005036156,-624.11,0.00014885,2]
[355201291,1741005036166,-6404.33,0.00014885,2]
[355201292,1741005036175,-10360.39,0.00014885,2]
[355201293,1741005036184,-828.33,0.00014886,2]
[355201294,1741005036194,-500.0,0.00014886,2]
[355201295,1741005036203,-506.36548737,0.00014886,2]
[355201296,1741005036213,-505.71060038,0.00014886,2]
[355201297,1741005036222,-503.08361146,0.00014886,2]
[355201298,1741005036231,-505.18848691,0.00014886,2]
[355201299,1741005036240,-316.52385735,0.00014886,2]
[355201300,1741005036250,-500.0,0.00014886,2]
[355201301,1741005036259,-500.0,0.00014886,2]
[355201302,1741005036268,-500.0,0.00014886,2]
[355201303,1741005036280,-352.55887302,0.00014886,2]
[355201304,1741005036289,-514.68662665,0.00014886,2]
[355201305,1741005036299,-504.02879502,0.00014886,2]
[355201306,1741005036308,-500.0,0.00014886,2]
[355201307,1741005036317,-503.87791022,0.00014886,2]
[355201308,1741005036326,-511.26117042,0.00014886,2]
[355201309,1741005036336,-514.33863087,0.00014886,2]
[355201310,1741005036344,-501.62682156,0.00014886,2]
[355201311,1741005036354,-500.0,0.00014886,2]
[355201312,1741005036363,-510.10935756,0.00014886,2]
[355201313,1741005036372,-503.35403899,0.00014886,2]
[355201314,1741005036381,-500.0,0.00014886,2]
[355201315,1741005036390,-505.26079872,0.00014886,2]
[355201316,1741005036400,-500.0,0.00014886,2]
[355201317,1741005036410,-500.0,0.00014886,2]
[355201318,1741005036419,-501.8514237,0.00014886,2]
[355201319,1741005036429,-503.59017608,0.00014886,2]
[355201320,1741005036439,-515.75977982,0.00014886,2]
[355201321,1741005036448,-502.55577764,0.00014886,2]
[355201322,1741005036458,-503.41838379,0.00014886,2]
[355201323,1741005036467,-500.0,0.00014886,2]
[355201324,1741005036477,-508.24183341,0.00014886,2]
[355201325,1741005036486,-505.29336179,0.00014886,2]
[355201326,1741005036495,-506.89348772,0.00014886,2]
[355201327,1741005036505,-501.43287758,0.00014886,2]
[355201328,1741005036514,-505.92257091,0.00014886,2]
[355201329,1741005036526,-500.0,0.00014886,2]
[355201330,1741005036536,-505.13731742,0.00014886,2]
[355201331,1741005036546,-500.0,0.00014886,2]
[355201332,1741005036555,-502.69067139,0.00014886,2]
[355201333,1741005036565,-501.44836762,0.00014886,2]
[355201334,1741005036575,-506.05458415,0.00014886,2]
[355201335,1741005036585,-503.48643427,0.00014886,2]
[355201336,1741005036595,-508.20642834,0.00014886,2]
[355201337,1741005036604,-511.71357985,0.00014886,2]
[355201338,1741005036614,-509.20713725,0.00014886,2]
[355201339,1741005036624,-500.0,0.00014886,2]
[355201340,1741005036634,-502.07705465,0.00014886,2]
[355201341,1741005036645,-501.96995523,0.00014886,2]
[355201342,1741005036655,-500.0,0.00014886,2]
[355201343,1741005036664,-622.54,0.00014886,2]
[355201344,1741005036674,-500.0,0.00014886,2]
[355201345,1741005036684,-500.0,0.00014886,2]
[355201346,1741005036694,-501.57035172,0.00014886,2]
[355201347,1741005036703,-500.0,0.00014886,2]
[355201348,1741005036713,-501.89028467,0.00014886,2]
[355201349,1741005036723,-503.18984736,0.00014886,2]
[355201350,1741005036733,-500.0,0.00014886,2]
[355201351,1741005036743,-501.81593134,0.00014886,2]
[355201352,1741005036752,-506.01320843,0.00014886,2]
[355201353,1741005036762,-506.80945339,0.00014886,2]
[355201354,1741005036773,-540.59395309,0.00014886,2]
[355201355,1741005036782,-504.83322102,0.00014886,2]
[355201356,1741005036791,-500.0,0.00014886,2]
[355201357,1741005036942,-501.52100846,0.00014886,2]
[355201358,1741005036952,-505.39054972,0.00014886,2]
[355201359,1741005036962,-514.63433009,0.00014886,2]
[355201360,1741005036971,-511.2122546,0.00014886,2]
[355201361,1741005036981,-510.50499889,0.00014886,2]
[355201362,1741005036991,-506.07752812,0.00014886,2]
[355201363,1741005037000,-500.9698882,0.00014886,2]
[355201364,1741005037010,-511.28467943,0.00014886,2]
[355201365,1741005037020,-508.18584998,0.00014886,2]
[355201366,1741005037030,-513.32509836,0.00014886,2]
[355201367,1741005037043,-500.0,0.00014886,2]
[355201368,1741005037052,-504.71534961,0.00014886,2]
[355201369,1741005037062,-501.21724616,0.00014886,2]
[355201370,1741005037072,-511.14562123,0.00014886,2]
[355201371,1741005037083,-500.0,0.00014886,2]
[355201372,1741005037092,-500.0,0.00014886,2]
[355201373,1741005037102,-500.0,0.00014886,2]
[355201374,1741005037111,-509.37341543,0.00014886,2]
[355201375,1741005037122,-500.0,0.00014886,2]
[355201376,1741005037131,-502.45049126,0.00014886,2]
[355201377,1741005037141,-504.48274742,0.00014886,2]
[355201378,1741005037151,-502.27978642,0.00014886,2]
[355201379,1741005037161,-504.4058001,0.00014886,2]
[355201380,1741005037170,-504.47703331,0.00014886,2]
[355201381,1741005037180,-504.14734257,0.00014886,2]
[355201382,1741005037190,-507.36141801,0.00014886,2]
[355201383,1741005037200,-515.88017322,0.00014886,2]
[355201384,1741005037210,-517.66315661,0.00014886,2]
[355201385,1741005037219,-512.1717737,0.00014886,2]
[355201386,1741005037229,-508.12286324,0.00014886,2]
[355201387,1741005037238,-507.67155207,0.00014886,2]
[355201388,1741005037247,-512.64,0.00014886,2]
[355201389,1741005037257,-504.15883572,0.00014886,2]
[355201390,1741005037266,-511.63607959,0.00014886,2]
[355201391,1741005037278,-507.14626791,0.00014886,2]
[355201392,1741005037288,-500.0,0.00014886,2]
[355201393,1741005037297,-500.0,0.00014886,2]
[355201394,1741005037307,-500.0,0.00014886,2]
[355201395,1741005037316,-511.76787898,0.00014886,2]
[355201396,1741005037326,-500.0,0.00014886,2]
[355201397,1741005037336,-500.0,0.00014886,2]
[355201398,1741005037345,-511.8415409,0.00014886,2]
[355201399,1741005037355,-500.0,0.00014886,2]
[355201400,1741005037365,-500.0,0.00014886,2]
[355201401,1741005037375,-505.54239866,0.00014886,2]
[355201402,1741005037384,-500.0,0.00014886,2]
[355201403,1741005037394,-503.99937827,0.00014886,2]
[355201404,1741005037403,-500.0,0.00014886,2]
[355201405,1741005037413,-511.98935484,0.00014886,2]
[355201406,1741005037422,-500.0,0.00014886,2]
[355201407,1741005037432,-500.0,0.00014886,2]
[355201408,1741005037442,-513.58111907,0.00014886,2]
[355201409,1741005037451,-515.65362778,0.00014886,2]
[355201410,1741005037461,-344.35119334,0.00014886,2]
[355201411,1741005037470,-504.65360048,0.00014886,2]
[355201412,1741005037480,-506.91803704,0.00014886,2]
[355201413,1741005037491,-500.0,0.00014886,2]
[355201414,1741005037500,-505.33636349,0.00014886,2]
[355201415,1741005037510,-506.84742461,0.00014886,2]
[355201416,1741005037519,-507.7133114,0.00014886,2]
[355201417,1741005037531,-599.71991057,0.00014886,2]
[355201418,1741005037541,-516.36925017,0.00014886,2]
[355201419,1741005037551,-516.86524559,0.00014886,2]
[355201420,1741005037561,-503.9004558,0.00014886,2]
[355201421,1741005037570,-504.74275263,0.00014886,2]
[355201422,1741005037580,-500.91730851,0.00014886,2]
[355201423,1741005037590,-510.8381048,0.00014886,2]
[355201424,1741005037599,-514.26777699,0.00014886,2]
[355201425,1741005037609,-504.48900687,0.00014886,2]
[355201426,1741005037619,-507.00667273,0.00014886,2]
[355201427,1741005037629,-507.03431071,0.00014886,2]
[355201428,1741005037639,-500.0,0.00014886,2]
[355201429,1741005037650,-500.0,0.00014886,2]
[355201430,1741005037660,-508.73827362,0.00014886,2]
[355201431,1741005037670,-512.16367715,0.00014886,2]
[355201432,1741005037679,-500.0,0.00014886,2]
[355201433,1741005037689,-517.85586761,0.00014886,2]
[355201434,1741005037699,-515.56923951,0.00014886,2]
[355201435,1741005037708,-492.54905607,0.00014886,2]
[355201436,1741005037718,-517.14286622,0.00014886,2]
[355201437,1741005037728,-505.70118723,0.00014886,2]
[355201439,1741005037737,-511.15487997,0.00014886,2]
[355201440,1741005037747,-504.25302305,0.00014886,2]
[355201441,1741005037756,-511.54374082,0.00014886,2]
[355201442,1741005037766,-512.76567326,0.00014886,2]
[355201443,1741005037779,-500.0,0.00014886,2]
[355201444,1741005037788,-500.0,0.00014886,2]
[355201446,1741005037798,-509.43253053,0.00014886,2]
[355201448,1741005037807,-504.28840048,0.00014886,2]
[355201450,1741005037817,-503.77621952,0.00014886,2]
[355201452,1741005037827,-500.0,0.00014886,2]
[355201454,1741005037836,-513.53642849,0.00014886,2]
[355201456,1741005037846,-500.0,0.00014886,2]
[355201458,1741005037855,-157.88875327,0.00014886,2]
[355201459,1741005037865,-506.18870812,0.00014886,2]
[355201460,1741005037875,-504.34788326,0.00014886,2]
[355201461,1741005037884,-500.0,0.00014886,2]
[355201462,1741005037894,-510.93281628,0.00014886,2]
[355201463,1741005037903,-500.0,0.00014886,2]
[355201464,1741005037913,-511.39877893,0.00014886,2]
[355201465,1741005037922,-500.0,0.00014886,2]
[355201466,1741005037931,-521.95828747,0.00014886,2]
[355201467,1741005037941,-500.0,0.00014886,2]
[355201468,1741005037951,-505.22342907,0.00014886,2]
[355201469,1741005037960,-500.0,0.00014886,2]
[355201470,1741005037970,-511.64059478,0.00014886,2]
[355201471,1741005037980,-500.0,0.00014886,2]
[355201472,1741005037990,-507.18129846,0.00014886,2]
[355201473,1741005037999,-518.03420795,0.00014886,2]
[355201474,1741005038009,-500.0,0.00014886,2]
[355201475,1741005038018,-515.10289249,0.00014886,2]
[355201476,1741005038030,-504.31276822,0.00014886,2]
[355201477,1741005038040,-505.90068591,0.00014886,2]
[355201478,1741005038050,-511.54453544,0.00014886,2]
[355201479,1741005038059,-500.0,0.00014886,2]
[355201480,1741005038069,-513.19585572,0.00014886,2]
[355201481,1741005038079,-636.12735967,0.00014886,2]
[355201482,1741005038089,-502.47315157,0.00014886,2]
[355201483,1741005038099,-517.42024054,0.00014886,2]
[355201484,1741005038108,-509.49406244,0.00014886,2]
[355201485,1741005038119,-501.93903539,0.00014886,2]
[355201486,1741005038128,-624.98821628,0.00014886,2]
[355201487,1741005038137,-508.53488719,0.00014886,2]
[355201488,1741005038147,-506.45853445,0.00014886,2]
[355201489,1741005038156,-511.22704022,0.00014886,2]
[355201490,1741005038166,-500.0,0.00014886,2]
[355201491,1741005038175,-508.63915855,0.00014886,2]
[355201492,1741005038185,-506.83597995,0.00014886,2]
[355201493,1741005038194,-500.0,0.00014886,2]
[355201494,1741005038204,-516.80905086,0.00014886,2]
[355201495,1741005038213,-507.71497122,0.00014886,2]
[355201496,1741005038223,-500.0,0.00014886,2]
[355201497,1741005038232,-514.59049683,0.00014886,2]
[355201498,1741005038242,-517.45035348,0.00014886,2]
[355201499,1741005038251,-503.2763937,0.00014886,2]
[355201500,1741005038261,-514.02322343,0.00014886,2]
[355201501,1741005038270,-514.40933572,0.00014886,2]
[355201502,1741005038280,-512.4666874,0.00014886,2]
[355201503,1741005038289,-517.4891868,0.00014886,2]
[355201504,1741005038298,-503.25001214,0.00014886,2]
[355201505,1741005038308,-505.34318011,0.00014886,2]
[355201506,1741005038317,-500.0,0.00014886,2]
[355201507,1741005038326,-518.06587994,0.00014886,2]
[355201508,1741005038336,-497.79657221,0.00014886,2]
[355201509,1741005038346,-518.23333746,0.00014886,2]
[355201510,1741005038355,-507.35657206,0.00014886,2]
[355201511,1741005038364,-517.45197266,0.00014886,2]
[355201512,1741005038373,-508.35309045,0.00014886,2]
[355201513,1741005038383,-500.0,0.00014886,2]
[355201514,1741005038393,-500.0,0.00014886,2]
[355201516,1741005038403,-506.42257369,0.00014886,2]
[355201517,1741005038412,-510.09949447,0.00014886,2]
[355201518,1741005038422,-500.0,0.00014886,2]
[355201519,1741005038431,-500.0,0.00014886,2]
[355201520,1741005038440,-500.0,0.00014886,2]
[355201521,1741005038450,-519.32335517,0.00014886,2]
[355201522,1741005038459,-520.87630349,0.00014886,2]
[355201523,1741005038468,-500.0,0.00014886,2]
[355201524,1741005038478,-501.7476596,0.00014886,2]
[355201525,1741005038487,-506.12113573,0.00014886,2]
[355201526,1741005038496,-500.0,0.00014886,2]
[355201527,1741005038506,-511.51601807,0.00014886,2]
[355201528,1741005038515,-505.04303201,0.00014886,2]
[355201529,1741005038526,-504.60591166,0.00014886,2]
[355201530,1741005038536,-500.0,0.00014886,2]
[355201531,1741005038545,-511.12007119,0.00014886,2]
[355201532,1741005038555,-510.76983945,0.00014886,2]
[355201533,1741005038565,-500.0,0.00014886,2]
[355201534,1741005038574,-504.37035443,0.00014886,2]
[355201535,1741005038584,-500.0,0.00014886,2]
[355201536,1741005038593,-500.0,0.00014886,2]
[355201537,1741005038602,-605.34132637,0.00014886,2]
[355201538,1741005038612,-503.7318142,0.00014886,2]
[355201539,1741005038622,-502.88634554,0.00014886,2]
[355201540,1741005038632,-507.27774451,0.00014886,2]
[355201541,1741005038642,-512.27433352,0.00014886,2]
[355201542,1741005038652,-500.0,0.00014886,2]
[355201543,1741005038661,-505.92060389,0.00014886,2]
[355201544,1741005038671,-500.0,0.00014886,2]
[355201545,1741005038680,-500.0,0.00014886,2]
[355201546,1741005038690,-500.0,0.00014886,2]
[355201547,1741005038700,-500.0,0.00014886,2]
[355201548,1741005038710,-500.0,0.00014886,2]
[355201549,1741005038719,-512.03056446,0.00014886,2]
[355201550,1741005038729,-500.0,0.00014886,2]
[355201551,1741005038739,-503.45779044,0.00014886,2]
[355201552,1741005038748,-503.8617678,0.00014886,2]
[355201553,1741005038757,-503.40709115,0.00014886,2]
[355201554,1741005038767,-500.0,0.00014886,2]
[355201555,1741005038777,-508.76987453,0.00014886,2]
[355201556,1741005038787,-502.81972838,0.00014886,2]
[355201557,1741005038797,-500.0,0.00014886,2]
[355201558,1741005038806,-504.46413873,0.00014886,2]
[355201559,1741005038815,-500.0,0.00014886,2]
[355201560,1741005038824,-518.71725465,0.00014886,2]
[355201561,1741005038833,-505.38613731,0.00014886,2]
[355201562,1741005038842,-157.151504,0.00014886,2]
[355201563,1741005038852,-506.07998428,0.00014886,2]
[355201564,1741005038861,-504.05102743,0.00014886,2]
[355201565,1741005038870,-502.66073157,0.00014886,2]
[355201566,1741005038879,-500.0,0.00014886,2]
[355201567,1741005038888,-500.0,0.00014886,2]
[355201568,1741005038897,-503.40831466,0.00014886,2]
[355201569,1741005038906,-500.0,0.00014886,2]
[355201570,1741005038915,-500.0,0.00014886,2]
[355201571,1741005038924,-506.20736268,0.00014886,2]
[355201572,1741005038933,-509.72049284,0.00014886,2]
[355201573,1741005038942,-504.04275475,0.00014886,2]
[355201574,1741005038951,-502.79581622,0.00014886,2]
[355201575,1741005038960,-504.92938679,0.00014886,2]
[355201576,1741005038970,-506.87984047,0.00014886,2]
[355201577,1741005038979,-509.3734702,0.00014886,2]
[355201578,1741005038989,-500.0,0.00014886,2]
[355201579,1741005038998,-508.1713595,0.00014886,2]
[355201580,1741005039007,-500.0,0.00014886,2]
[355201581,1741005039017,-500.74677812,0.00014886,2]
[355201582,1741005039028,-503.80231047,0.00014886,2]
[355201583,1741005039038,-500.0,0.00014886,2]
[355201584,1741005039048,-500.0,0.00014886,2]
[355201585,1741005039058,-500.0,0.00014886,2]
[355201586,1741005039067,-504.20394798,0.00014886,2]
[355201587,1741005039076,-506.17898262,0.00014886,2]
[355201588,1741005039086,-502.71857577,0.00014886,2]
[355201589,1741005039096,-500.0,0.00014886,2]
[355201590,1741005039105,-500.0,0.00014886,2]
[355201591,1741005039114,-500.0,0.00014886,2]
[355201592,1741005039126,-503.07051854,0.00014886,2]
[355201593,1741005039136,-509.53221155,0.00014886,2]
[355201594,1741005039146,-613.82,0.00014886,2]
[355201595,1741005039155,-500.0,0.00014886,2]
[355201596,1741005039165,-507.28745379,0.00014886,2]
[355201597,1741005039174,-506.56107695,0.00014886,2]
[355201598,1741005039184,-500.0,0.00014886,2]
[355201599,1741005039193,-503.30666775,0.00014886,2]
[355201600,1741005039202,-500.0,0.00014886,2]
[355201601,1741005039212,-504.3073434,0.00014886,2]
[355201602,1741005039221,-504.08403892,0.00014886,2]
[355201603,1741005039231,-500.0,0.00014886,2]
[355201604,1741005039240,-500.0,0.00014886,2]
[355201605,1741005039249,-500.0,0.00014886,2]
[355201606,1741005039259,-500.0,0.00014886,2]
[355201607,1741005039268,-500.0,0.00014886,2]
[355201608,1741005039277,-500.0,0.00014886,2]
[355201609,1741005039286,-500.0,0.00014886,2]
[355201610,1741005039295,-500.0,0.00014886,2]
[355201611,1741005039305,-505.12733383,0.00014886,2]
[355201612,1741005039354,-517.27142337,0.00014886,2]
[355201613,1741005039363,-506.46865865,0.00014886,2]
[355201614,1741005039372,-507.33390045,0.00014886,2]
[355201615,1741005039381,-508.88459171,0.00014886,2]
[355201616,1741005039390,-504.05681488,0.00014886,2]
[355201617,1741005039399,-501.4971233,0.00014886,2]
[355201618,1741005039409,-500.0,0.00014886,2]
[355201619,1741005039418,-500.0,0.00014886,2]
[355201620,1741005039428,-500.0,0.00014886,2]
[355201621,1741005039437,-501.9686888,0.00014886,2]
[355201622,1741005039446,-500.0,0.00014886,2]
[355201623,1741005039455,-513.48694092,0.00014886,2]
[355201624,1741005039464,-503.14593751,0.00014886,2]
[355201625,1741005039473,-505.08601184,0.00014886,2]
[355201626,1741005039482,-500.0,0.00014886,2]
[355201627,1741005039492,-490.26060754,0.00014886,2]
[355201628,1741005039502,-505.80234404,0.00014886,2]
[355201629,1741005039511,-500.0,0.00014886,2]
[355201630,1741005039521,-500.0,0.00014886,2]
[355201631,1741005039531,-503.50475025,0.00014886,2]
[355201632,1741005039541,-500.0,0.00014886,2]
[355201633,1741005039551,-500.0,0.00014886,2]
[355201634,1741005039560,-509.44353287,0.00014886,2]
[355201635,1741005039570,-500.0,0.00014886,2]
[355201636,1741005039580,-502.6691935,0.00014886,2]
[355201637,1741005039589,-500.0,0.00014886,2]
[355201638,1741005039598,-513.45203227,0.00014886,2]
[355201639,1741005039608,-500.0,0.00014886,2]
[355201640,1741005039617,-511.26675191,0.00014886,2]
[355201641,1741005039626,-506.33155701,0.00014886,2]
[355201642,1741005039636,-500.0,0.00014886,2]
[355201643,1741005039646,-500.0,0.00014886,2]
[355201644,1741005039655,-504.10864076,0.00014886,2]
[355201646,1741005039665,-504.12348277,0.00014886,2]
[355201647,1741005039674,-503.5890881,0.00014886,2]
[355201648,1741005039683,-500.0,0.00014886,2]
[355201649,1741005039692,-503.72060794,0.00014886,2]
[355201651,1741005039702,-500.0,0.00014886,2]
[355201652,1741005039711,-500.52977525,0.00014886,2]
[355201653,1741005039720,-500.0,0.00014886,2]
[355201654,1741005039730,-506.74912846,0.00014886,2]
[355201655,1741005039739,-500.0,0.00014886,2]
[355201656,1741005039748,-512.92201474,0.00014886,2]
[355201657,1741005039757,-500.0,0.00014886,2]
[355201658,1741005039767,-503.77837043,0.00014886,2]
[355201659,1741005039778,-502.71257679,0.00014886,2]
[355201660,1741005039787,-500.0,0.00014886,2]
[355201661,1741005039796,-525.94276691,0.00014886,2]
[355201662,1741005039806,-508.7685001,0.00014886,2]
[355201663,1741005039815,-503.37671596,0.00014886,2]
[355201664,1741005039825,-500.0,0.00014886,2]
[355201665,1741005039834,-500.0,0.00014886,2]
[355201666,1741005039843,-500.0,0.00014886,2]
[355201667,1741005039852,-501.33319566,0.00014886,2]
[355201668,1741005039861,-504.83164844,0.00014886,2]
[355201669,1741005039871,-503.34346404,0.00014886,2]
[355201670,1741005039880,-510.73036284,0.00014886,2]
[355201671,1741005039889,-507.31537825,0.00014886,2]
[355201672,1741005039898,-500.0,0.00014886,2]
[355201673,1741005039908,-507.27578085,0.00014886,2]
[355201674,1741005039917,-500.0,0.00014886,2]
[355201676,1741005039926,-500.0,0.00014886,2]
[355201678,1741005039935,-506.40747248,0.00014886,2]
[355201680,1741005039944,-500.0,0.00014886,2]
[355201682,1741005039953,-500.0,0.00014886,2]
[355201684,1741005039963,-501.87476471,0.00014886,2]
[355201686,1741005039972,-500.0,0.00014886,2]
[355201688,1741005039981,-500.0,0.00014886,2]
[355201690,1741005039991,-557.86,0.00014886,2]
[355201692,1741005040000,-500.0,0.00014886,2]
[355201694,1741005040009,-500.0,0.00014886,2]
[355201696,1741005040019,-509.52088745,0.00014886,2]
[355201698,1741005040030,-500.47778678,0.00014886,2]
[355201700,1741005040043,-502.43454167,0.00014886,2]
[355201702,1741005040054,-503.32056055,0.00014886,2]
[355201704,1741005040064,-500.0,0.00014886,2]
[355201706,1741005040075,-506.83704967,0.00014886,2]
[355201708,1741005040086,-501.59772297,0.00014886,2]
[355201710,1741005040096,-500.0,0.00014886,2]
[355201712,1741005040106,-501.61353215,0.00014886,2]
[355201714,1741005040117,-500.0,0.00014886,2]
[355201716,1741005040128,-500.0,0.00014886,2]
[355201718,1741005040138,-2481.93,0.00014886,2]
[355201720,1741005040149,-509.77403466,0.00014886,2]
[355201722,1741005040159,-502.39044101,0.00014886,2]
[355201725,1741005040170,-512.09124165,0.00014886,2]
[355201727,1741005040180,-500.0,0.00014886,2]
[355201729,1741005040190,-508.91122546,0.00014886,2]
[355201731,1741005040200,-505.1227444,0.00014886,2]
[355201733,1741005040210,-505.01575368,0.00014886,2]
[355201734,1741005040220,-506.77650374,0.00014886,2]
[355201736,1741005040230,-505.17442385,0.00014886,2]
[355201738,1741005040240,-500.0,0.00014886,2]
[355201740,1741005040250,-500.0,0.00014886,2]
[355201742,1741005040260,-470.65301285,0.00014886,2]
[355201744,1741005040271,-500.0,0.00014886,2]
[355201746,1741005040281,-500.0,0.00014886,2]
[355201748,1741005040291,-501.41042723,0.00014886,2]
[355201750,1741005040301,-500.0,0.00014886,2]
[355201752,1741005040311,-506.68574309,0.00014886,2]
[355201754,1741005040321,-513.83693262,0.00014886,2]
[355201756,1741005040332,-507.15801383,0.00014886,2]
[355201758,1741005040341,-500.0,0.00014886,2]
[355201760,1741005040352,-503.74900318,0.00014886,2]
[355201761,1741005040362,-503.02945184,0.00014886,2]
[355201762,1741005040372,-500.0,0.00014886,2]
[355201763,1741005040381,-500.0,0.00014886,2]
[355201764,1741005040391,-500.0,0.00014886,2]
[355201765,1741005040401,-500.0,0.00014886,2]
[355201766,1741005040411,-500.0,0.00014886,2]